bitfinex-derivatives/quotes_BTCF0:USTF0_20250127
["timestamp","ask_amount","ask_price","bid_price","bid_amount"]
[1737997974602,0.3608,99538.0,99520.0,0.14547104]
[1737997974791,0.3608,99538.0,99521.0,0.00015071]
[1737997975497,0.3608,99530.0,99521.0,0.00015071]
[1737997976606,0.3608,99530.0,99521.0,0.04983092]
[1737997977192,0.3608,99530.0,99516.0,0.201043]
[1737997977403,0.3608,99530.0,99522.0,1.5]
[1737997977703,0.00015071,99540.0,99529.0,0.3608]
[1737997978007,0.00015071,99540.0,99537.0,0.3608]
[1737997978304,0.14571933,99547.0,99540.0,0.14547104]
[1737997978504,0.14571933,99547.0,99546.0,0.3608]
[1737997979603,0.11442439,99547.0,99546.0,0.3608]
[1737997979805,0.07648659,99555.0,99546.0,0.3608]
[1737997980111,0.06248659,99555.0,99554.0,0.3608]
[1737997980405,0.20394587,99571.0,99554.0,2.01151172]
[1737997980600,0.20394587,99571.0,99563.0,0.3608]
[1737997980801,0.22603338,99579.0,99569.0,0.200934]
[1737997981003,0.17795338,99579.0,99577.0,0.3608]
[1737997981199,0.3608,99592.0,99577.0,0.3608]
[1737997981200,0.17614809,99582.0,99577.0,0.3608]
[1737997981599,0.14448381,99582.0,99577.0,0.3608]
[1737997982704,0.14448381,99582.0,99577.0,0.41043786]
[1737997983100,0.3608,99579.0,99571.0,0.00052]
[1737997983406,0.3608,99579.0,99551.0,0.31220391]
[1737997983407,0.3608,99577.0,99551.0,0.31220391]
[1737997983996,0.3608,99577.0,99560.0,0.14547104]
[1737997984190,0.3608,99577.0,99563.0,0.3608]
[1737997984507,0.3608,99577.0,99567.0,0.200939]
[1737997985004,0.3608,99577.0,99564.0,0.1532]
[1737997985202,0.00015063,99589.0,99573.0,0.3608]
[1737997985501,0.00015063,99589.0,99582.0,0.3608]
[1737997986003,0.00015063,99589.0,99587.0,0.200899]
[1737997986305,0.00015063,99589.0,99582.0,0.3608]
[1737997986306,0.09714066,99600.0,99588.0,0.49536]
[1737997986504,0.3608,99625.0,99610.0,0.200853]
[1737997986505,0.05514115,99611.0,99610.0,0.200853]
[1737997986707,0.12444435,99634.0,99619.0,0.200834]
[1737997986912,0.09077161,99634.0,99630.0,0.3608]
[1737997987203,0.09077161,99634.0,99631.0,1.5]
[1737997987506,0.00015063,99642.0,99631.0,1.5]
[1737997987716,0.08651278,99639.0,99638.0,0.3608]
[1737997988510,0.00015063,99642.0,99638.0,0.3608]
[1737997989407,0.00015063,99642.0,99631.0,0.00036103]
[1737997989593,0.3608,99634.0,99622.0,0.00015063]
[1737997989792,0.3608,99623.0,99622.0,0.00015063]
[1737997990406,0.36168001,99640.0,99622.0,0.00015063]
[1737997990614,0.3608,99640.0,99622.0,0.00015063]
[1737997990905,0.3608,99640.0,99630.0,0.22377338]
[1737997991098,0.00015063,99642.0,99639.0,0.3608]
[1737997992510,0.00015063,99642.0,99630.0,0.63389879]
[1737997993107,0.00015063,99642.0,99639.0,0.3608]
[1737997993308,0.00015063,99642.0,99640.0,0.200791]
[1737997993505,0.00015063,99642.0,99639.0,0.3608]
[1737997993506,0.1503,99667.0,99639.0,0.3608]
[1737997993699,0.1503,99667.0,99651.0,0.3608]
[1737997993910,0.00299,99668.0,99651.0,0.3608]
[1737997994504,0.00299,99668.0,99658.0,0.22377338]
[1737997994911,0.00299,99668.0,99651.0,0.05011125]
[1737997995219,0.00299,99668.0,99650.0,0.00015055]
[1737997995220,0.00299,99668.0,99652.0,0.3608]
[1737997995416,0.00299,99668.0,99661.0,0.31054672]
[1737997996010,0.3608,99694.0,99663.0,0.200746]
[1737997996319,0.3608,99694.0,99670.0,0.22377338]
[1737997996826,0.3608,99694.0,99670.0,0.58457338]
[1737997997317,0.00015055,99686.0,99679.0,0.3608]
[1737997997510,0.00015055,99686.0,99670.0,0.58457338]
[1737997997712,0.36095055,99686.0,99670.0,0.58457338]
[1737997997908,0.36191056,99686.0,99670.0,0.58457338]
[1737997998212,0.00111056,99686.0,99679.0,0.3608]
[1737997998410,0.00015055,99686.0,99671.0,0.3608]
[1737997999222,0.36095055,99686.0,99671.0,0.3608]
[1737997999416,0.00103056,99686.0,99671.0,0.3608]
[1737997999608,0.3608,99694.0,99671.0,0.3608]
[1737997999816,0.3608,99694.0,99680.0,0.22377338]
[1737998000217,0.3608,99694.0,99682.0,0.3608]
[1737998000719,0.3608,99693.0,99682.0,0.3608]
[1737998000919,0.1644,99696.0,99682.0,0.3608]
[1737998001118,0.00314047,99698.0,99690.0,0.3608]
[1737998001618,0.00314047,99698.0,99690.0,0.31054672]
[1737998002128,0.00314047,99698.0,99690.0,0.51123772]
[1737998002312,0.00314047,99698.0,99691.0,1.5]
[1737998002513,0.00068574,99698.0,99691.0,1.5]
[1737998002713,0.25068379,99707.0,99691.0,1.5]
[1737998002913,0.200625,99724.0,99697.0,0.22377338]
[1737998003310,0.3608,99707.0,99697.0,0.22377338]
[1737998004023,9.979e-05,99712.0,99697.0,0.27406564]
[1737998004414,9.979e-05,99712.0,99697.0,0.05029226]
[1737998004617,0.3608,99699.0,99692.0,0.00015047]
[1737998004817,0.35963058,99699.0,99692.0,0.00015047]
[1737998005012,0.35963058,99699.0,99692.0,0.04976514]
[1737998006416,0.36168001,99708.0,99692.0,0.04976514]
[1737998006417,0.3608,99701.0,99692.0,0.04976514]
[1737998006723,9.979e-05,99712.0,99700.0,0.3608]
[1737998007018,9.979e-05,99712.0,99706.0,0.3608]
[1737998007225,9.979e-05,99712.0,99702.0,0.1449247]
[1737998007413,0.21021751,99707.0,99695.0,0.49476]
[1737998007614,0.3608,99711.0,99695.0,0.44450672]
[1737998007919,9.979e-05,99712.0,99700.0,0.1449247]
[1737998008117,9.979e-05,99712.0,99695.0,0.44450672]
[1737998008418,0.200658,99708.0,99695.0,0.44450672]
[1737998009010,0.3608,99710.0,99695.0,0.44450672]
[1737998010024,0.561453,99710.0,99695.0,0.44450672]
[1737998010229,0.200657,99708.0,99695.0,0.44450672]
[1737998010616,0.3608,99710.0,99695.0,0.39425344]
[1737998013024,0.3608,99710.0,99700.0,0.1449247]
[1737998013528,0.3608,99710.0,99695.0,0.39425344]
[1737998013717,0.3608,99710.0,99695.0,0.34400016]
[1737998014129,0.3608,99710.0,99700.0,0.1449247]
[1737998014719,0.3608,99701.0,99695.0,0.34400016]
[1737998015134,0.3608,99701.0,99692.0,0.04976514]
[1737998015628,0.3608,99710.0,99692.0,0.04976514]
[1737998015935,0.3608,99710.0,99700.0,0.1449247]
[1737998016125,9.979e-05,99712.0,99692.0,0.04976514]
[1737998016729,9.979e-05,99712.0,99690.0,0.1449247]
[1737998016928,0.200653,99710.0,99690.0,0.1449247]
[1737998017131,0.200653,99710.0,99690.0,0.19465437]
[1737998017728,0.92229,99691.0,99690.0,0.04972967]
[1737998017924,0.92229,99691.0,99637.0,0.3608]
[1737998017925,0.200746,99663.0,99637.0,0.3608]
[1737998018234,0.200753,99660.0,99637.0,0.3608]
[1737998018435,0.200753,99660.0,99648.0,0.05020151]
[1737998018640,0.200767,99653.0,99638.0,0.00056]
[1737998018936,0.3608,99653.0,99641.0,0.72034297]
[1737998019125,0.15495047,99662.0,99643.0,0.36095047]
[1737998019441,0.00015047,99662.0,99654.0,0.3608]
[1737998019738,0.00015047,99662.0,99650.0,0.09467142]
[1737998020140,0.00015047,99662.0,99651.0,0.3608]
[1737998021840,0.00015047,99662.0,99661.0,0.3608]
[1737998022530,0.00015047,99662.0,99661.0,1.8608]
[1737998022838,0.00015047,99662.0,99661.0,1.81054672]
[1737998023039,0.3608,99677.0,99661.0,1.81054672]
[1737998023340,0.3608,99677.0,99667.0,0.1449247]
[1737998024039,0.200692,99691.0,99667.0,0.1449247]
[1737998024235,0.00015047,99682.0,99667.0,0.1449247]
[1737998024437,0.00015047,99682.0,99669.0,0.00015047]
[1737998025241,0.200732,99670.0,99669.0,0.00015047]
[1737998025752,0.3608,99675.0,99664.0,0.2980103]
[1737998026239,0.00015047,99682.0,99671.0,0.3608]
[1737998026432,0.00015047,99682.0,99672.0,0.1449247]
[1737998026937,1e-08,99682.0,99672.0,0.1449247]
[1737998027141,1e-08,99682.0,99667.0,0.00015047]
[1737998027142,0.3608,99677.0,99667.0,0.00015047]
[1737998027337,0.3608,99678.0,99667.0,0.00015047]
[1737998027544,1e-08,99682.0,99667.0,0.00015047]
[1737998027738,0.3608,99680.0,99670.0,0.1449247]
[1737998028148,1e-08,99682.0,99670.0,0.1449247]
[1737998028439,1e-08,99682.0,99670.0,0.5057247]
[1737998028837,1e-08,99682.0,99670.0,0.45547142]
[1737998029842,1e-08,99682.0,99671.0,0.3608]
[1737998031330,1e-08,99682.0,99672.0,1.5]
[1737998031538,1e-08,99682.0,99679.0,0.3608]
[1737998031737,0.00299,99713.0,99679.0,0.3608]
[1737998032043,0.00299,99713.0,99690.0,0.1449247]
[1737998032233,0.36379,99713.0,99690.0,0.1449247]
[1737998032951,0.00015047,99711.0,99700.0,0.1449247]
[1737998033151,0.00015047,99711.0,99692.0,0.00015047]
[1737998033338,0.00015047,99711.0,99696.0,0.3608]
[1737998033641,0.00015047,99711.0,99700.0,0.1449247]
[1737998034034,0.3608,99706.0,99696.0,0.3608]
[1737998034244,0.3608,99697.0,99692.0,0.00015047]
[1737998034438,0.3608,99706.0,99692.0,0.00015047]
[1737998034842,0.3608,99706.0,99695.0,0.31054672]
[1737998035345,0.00025823,99699.0,99698.0,0.200675]
[1737998036550,0.00015047,99711.0,99700.0,0.200671]
[1737998036849,0.00015047,99711.0,99703.0,0.3608]
[1737998037841,1e-08,99711.0,99710.0,0.200652]
[1737998038046,7.999e-05,99713.0,99711.0,0.200648]
[1737998038243,7.999e-05,99713.0,99712.0,0.3608]
[1737998038449,0.3608,99732.0,99712.0,0.561447]
[1737998038841,0.3608,99740.0,99712.0,0.561447]
[1737998039049,9.979e-05,99730.0,99712.0,0.561447]
[1737998039251,9.979e-05,99730.0,99713.0,0.200645]
[1737998039550,9.979e-05,99730.0,99714.0,0.200644]
[1737998039748,9.979e-05,99730.0,99718.0,0.1449247]
[1737998039950,9.979e-05,99730.0,99720.0,0.3608]
[1737998040749,0.3608,99721.0,99713.0,0.00015047]
[1737998040953,9.979e-05,99730.0,99710.0,0.09482189]
[1737998041150,0.36379,99728.0,99718.0,0.1449247]
[1737998041458,0.00299,99728.0,99719.0,0.200633]
[1737998041758,0.00299,99728.0,99718.0,0.1449247]
[1737998041952,0.00299,99728.0,99725.0,0.3608]
[1737998042247,0.00299,99728.0,99718.0,0.1449247]
[1737998042553,0.00299,99728.0,99713.0,0.00015047]
[1737998042742,0.36379,99728.0,99713.0,0.00015047]
[1737998042945,0.3608,99720.0,99713.0,0.00015047]
[1737998043248,0.3608,99714.0,99685.0,0.1542]
[1737998043454,0.3608,99703.0,99685.0,0.1542]
[1737998043655,0.3608,99703.0,99692.0,0.17961951]
[1737998044152,0.3608,99695.0,99692.0,0.1798374]
[1737998044358,0.3608,99695.0,99672.0,0.77769326]
[1737998044359,0.20072,99676.0,99672.0,0.77769326]
[1737998044544,1.0216,99676.0,99672.0,0.77769326]
[1737998044745,0.050184,99667.0,99636.0,0.00150541]
[1737998044951,0.561578,99648.0,99636.0,0.00150541]
[1737998045143,0.561578,99648.0,99642.0,0.5965147]
[1737998045144,0.3608,99648.0,99642.0,0.5965147]
[1737998046453,0.3608,99646.0,99642.0,0.54555182]
[1737998046660,0.200786,99644.0,99642.0,0.54555182]
[1737998047060,0.200786,99644.0,99642.0,0.49529854]
[1737998047249,0.500786,99644.0,99642.0,0.49529854]
[1737998047452,0.200786,99644.0,99642.0,0.49529854]
[1737998047947,0.3608,99646.0,99636.0,0.00150541]
[1737998047948,0.200793,99640.0,99636.0,0.00150541]
[1737998048149,0.3608,99646.0,99609.0,0.203855]
[1737998048340,0.3608,99625.0,99624.0,0.05293196]
[1737998049645,0.3608,99633.0,99624.0,0.05293196]
[1737998050045,0.3608,99633.0,99624.0,0.00267868]
[1737998050246,0.3608,99633.0,99625.0,1.5]
[1737998050443,0.3608,99633.0,99615.0,0.00015055]
[1737998050655,0.3608,99622.0,99615.0,0.05019802]
[1737998050955,0.200841,99617.0,99615.0,0.00015055]
[1737998051660,0.3608,99622.0,99615.0,0.00015055]
[1737998051962,0.200832,99621.0,99615.0,0.00015055]
[1737998052158,0.3608,99622.0,99615.0,0.00015055]
[1737998052754,0.200833,99620.0,99615.0,0.00015055]
[1737998053159,0.200833,99620.0,99609.0,0.00374832]
[1737998053361,0.3608,99613.0,99603.0,1.50052]
[1737998053552,0.3608,99613.0,99603.0,1.5]
[1737998053757,0.3608,99605.0,99603.0,1.5]
[1737998054155,0.3608,99613.0,99603.0,1.5]
[1737998054357,0.3608,99613.0,99603.0,1.55042549]
[1737998055351,0.3608,99605.0,99603.0,1.55042549]
[1737998055756,0.3608,99605.0,99603.0,0.05042549]
[1737998055952,0.3608,99605.0,99602.0,0.0015059]
[1737998056153,0.3608,99605.0,99600.0,0.05125262]
[1737998056560,0.1449247,99610.0,99600.0,0.05125262]
[1737998056755,0.3608,99610.0,99600.0,0.19617732]
[1737998057072,0.3608,99601.0,99600.0,0.10270812]
[1737998058067,0.3608,99601.0,99600.0,0.06208678]
[1737998059372,0.3608,99601.0,99594.0,0.00315055]
[1737998059672,0.200882,99596.0,99594.0,0.00315055]
[1737998060055,0.3608,99600.0,99594.0,0.00315055]
[1737998060256,0.561675,99600.0,99594.0,0.00315055]
[1737998060454,0.3608,99600.0,99594.0,0.00315055]
[1737998062266,0.3608,99600.0,99589.0,1.50291806]
[1737998062478,0.3608,99608.0,99590.0,0.1449247]
[1737998062766,0.3608,99601.0,99591.0,0.200891]
[1737998062968,0.3608,99601.0,99589.0,0.00287806]
[1737998062969,0.3608,99593.0,99589.0,0.00287806]
[1737998063272,0.3608,99593.0,99579.0,0.003]
[1737998063455,0.3608,99580.0,99579.0,0.003]
[1737998063661,0.3608,99580.0,99579.0,0.05251914]
[1737998064563,0.561714,99580.0,99579.0,0.003]
[1737998064768,0.3608,99618.0,99579.0,0.3638]
[1737998064965,0.3608,99618.0,99608.0,0.1449247]
[1737998065268,0.3608,99629.0,99610.0,0.3608]
[1737998065459,0.44943279,99637.0,99619.0,0.1449247]
[1737998065659,0.03170098,99637.0,99635.0,0.3608]
[1737998065867,0.3608,99644.0,99627.0,0.5057247]
[1737998066270,0.3608,99636.0,99627.0,0.5057247]
[1737998066467,0.3608,99644.0,99627.0,0.5057247]
[1737998066658,0.3608,99644.0,99627.0,0.55586685]
[1737998066863,0.00015055,99646.0,99636.0,0.3608]
[1737998067063,0.00015055,99646.0,99627.0,0.55586685]
[1737998067262,0.00015055,99646.0,99635.0,0.561602]
[1737998067471,0.00015055,99646.0,99636.0,0.1481]
[1737998067669,0.14664968,99637.0,99636.0,0.1481]
[1737998067873,0.14664968,99637.0,99635.0,1.50052]
[1737998068071,0.14664968,99637.0,99635.0,1.5]
[1737998068270,0.50744968,99637.0,99635.0,1.44988825]
[1737998068471,0.50744968,99637.0,99627.0,0.19506685]
[1737998068681,0.14664968,99637.0,99627.0,0.05014215]
[1737998068969,0.00299,99668.0,99642.0,0.200787]
[1737998069177,0.00299,99668.0,99648.0,0.3608]
[1737998070172,0.00015055,99666.0,99648.0,0.3608]
[1737998071368,0.00015055,99666.0,99648.0,0.31068825]
[1737998071683,0.00015055,99666.0,99657.0,0.3608]
[1737998071867,0.00015055,99666.0,99649.0,1.5]
[1737998072069,0.3608,99662.0,99649.0,1.5]
[1737998072370,0.00015055,99666.0,99649.0,1.5]
[1737998072571,0.00015055,99666.0,99649.0,0.200774]
[1737998073167,0.3608,99662.0,99649.0,0.200774]
[1737998073870,0.561511,99681.0,99658.0,0.3608]
[1737998073871,0.36184001,99681.0,99658.0,0.3608]
[1737998074167,0.36184001,99681.0,99660.0,0.22383737]
[1737998074168,0.3608,99681.0,99660.0,0.22383737]
[1737998074361,0.3608,99681.0,99660.0,0.17372562]
[1737998074577,0.3608,99681.0,99662.0,0.200748]
[1737998075082,0.00015055,99681.0,99670.0,0.22383737]
[1737998075284,0.00015055,99681.0,99676.0,0.3608]
[1737998075977,0.00015055,99681.0,99677.0,1.5]
[1737998076366,0.00015055,99681.0,99678.0,0.1586]
[1737998077369,0.00015055,99681.0,99678.0,0.10848825]
[1737998080575,0.3608,99680.0,99676.0,0.05117624]
[1737998080774,0.3608,99680.0,99669.0,0.00015055]
[1737998081278,0.3608,99672.0,99627.0,0.3608]
[1737998081486,0.3608,99645.0,99622.0,0.200829]
[1737998081680,0.3608,99645.0,99630.0,0.22383737]
[1737998082179,0.3608,99641.0,99619.0,1.50052]
[1737998082370,0.3608,99641.0,99608.0,0.4948]
[1737998082570,0.3608,99618.0,99608.0,0.4948]
[1737998082873,0.200841,99617.0,99615.0,0.00015055]
[1737998083070,0.3608,99616.0,99615.0,0.00015055]
[1737998083276,0.200879,99598.0,99592.0,0.0015061]
[1737998083578,0.3608,99598.0,99592.0,0.05185675]
[1737998083788,0.3608,99611.0,99592.0,0.05185675]
[1737998084277,0.3608,99611.0,99594.0,0.3608]
[1737998085081,0.3608,99611.0,99592.0,0.0520073]
[1737998086578,0.3608,99611.0,99592.0,0.00189555]
[1737998086982,0.3608,99603.0,99592.0,0.00189555]
[1737998087674,0.3608,99611.0,99592.0,0.00189555]
[1737998088685,0.3608,99611.0,99600.0,0.14524759]
[1737998089574,0.3608,99611.0,99600.0,0.09513584]
[1737998090071,0.1543,99640.0,99600.0,0.09513584]
[1737998090072,0.3608,99646.0,99609.0,1.5]
[1737998090383,0.3608,99646.0,99636.0,0.14524759]
[1737998091089,0.3608,99646.0,99638.0,0.200796]
[1737998091282,0.3608,99646.0,99636.0,0.14524759]
[1737998092092,0.00015055,99651.0,99636.0,0.14524759]
[1737998092382,0.00015055,99651.0,99636.0,0.19505673]
[1737998092687,0.00015055,99651.0,99636.0,0.14494498]
[1737998092876,0.3608,99643.0,99636.0,0.14494498]
[1737998094685,0.00015055,99651.0,99636.0,0.14494498]
[1737998094686,0.3608,99647.0,99636.0,0.14494498]
[1737998095389,0.3608,99639.0,99631.0,0.00015055]
[1737998095581,0.3608,99639.0,99631.0,0.00086271]
[1737998095787,0.3608,99637.0,99623.0,0.49496]
[1737998095995,0.3608,99625.0,99623.0,0.49496]
[1737998096489,0.3608,99646.0,99623.0,0.54617575]
[1737998096785,0.3608,99644.0,99630.0,0.14524759]
[1737998098685,0.3608,99644.0,99626.0,0.3608]
[1737998098891,0.3608,99644.0,99630.0,0.14524759]
[1737998099484,0.3608,99644.0,99626.0,0.3608]
[1737998100391,0.3608,99644.0,99630.0,0.14524759]
[1737998100590,0.00015055,99651.0,99638.0,0.3608]
[1737998100786,0.00015055,99651.0,99641.0,0.14524759]
[1737998101183,0.3608,99642.0,99630.0,0.14524759]
[1737998101493,0.3608,99637.0,99626.0,0.3608]
[1737998101713,0.3608,99627.0,99623.0,0.00125455]
[1737998101899,0.200827,99623.0,99603.0,0.36230587]
[1737998102085,0.3608,99627.0,99603.0,0.36230587]
[1737998102086,0.3608,99618.0,99603.0,0.00150587]
[1737998102393,0.3608,99610.0,99603.0,0.05096543]
[1737998102590,0.3608,99618.0,99603.0,0.05096543]
[1737998102591,0.36152,99618.0,99603.0,0.00150587]
[1737998102792,0.36152,99630.0,99612.0,0.3608]
[1737998102990,0.3608,99630.0,99620.0,0.14524759]
[1737998103494,0.3608,99630.0,99610.0,0.14524759]
[1737998103692,0.00015055,99631.0,99620.0,0.14524759]
[1737998104199,0.00015055,99631.0,99621.0,0.20083]
[1737998104694,0.00015055,99631.0,99620.0,0.09513584]
[1737998104896,0.00015055,99631.0,99619.0,0.3608]
[1737998105193,0.00015055,99631.0,99621.0,0.20083]
[1737998105387,0.00015055,99631.0,99620.0,0.14524759]
[1737998105791,0.3608,99653.0,99632.0,0.200808]
[1737998105992,0.11617279,99641.0,99640.0,0.14524759]
[1737998106187,0.11617279,99641.0,99632.0,0.200808]
[1737998106391,0.11617279,99641.0,99631.0,0.14524759]
[1737998106899,0.11617279,99641.0,99631.0,0.34605659]
[1737998107192,0.11617279,99641.0,99631.0,0.14524759]
[1737998107398,0.11617279,99641.0,99632.0,1.5]
[1737998107794,0.11617279,99641.0,99627.0,0.3608]
[1737998108401,0.3608,99629.0,99605.0,0.00150587]
[1737998108705,0.3608,99606.0,99583.0,0.05073522]
[1737998108890,0.3608,99604.0,99570.0,0.14524759]
[1737998109093,0.3608,99596.0,99570.0,0.14524759]
[1737998109414,0.3608,99588.0,99574.0,0.23824592]
[1737998109591,0.3608,99588.0,99586.0,0.00133659]
[1737998109802,0.00072,99596.0,99586.0,1.50133659]
[1737998110097,0.36167055,99600.0,99586.0,1.50133659]
[1737998110400,0.00015055,99600.0,99593.0,0.3608]
[1737998110701,0.00015055,99600.0,99596.0,0.00133659]
[1737998110999,0.00015055,99600.0,99593.0,0.31202484]
[1737998111702,0.3608,99632.0,99609.0,0.200854]
[1737998111891,0.3608,99634.0,99611.0,0.3608]
[1737998112295,0.3608,99626.0,99614.0,1.5]
[1737998112697,0.3608,99618.0,99598.0,0.5205]
[1737998112892,0.3608,99618.0,99610.0,0.00015055]
[1737998113096,0.561639,99618.0,99610.0,0.00015055]
[1737998113296,0.11617279,99617.0,99610.0,0.00015055]
[1737998113699,0.20085,99612.0,99610.0,0.00015055]
[1737998114015,0.11617279,99617.0,99590.0,0.14524759]
[1737998114308,0.11617279,99617.0,99600.0,0.14524759]
[1737998115207,0.47697279,99617.0,99600.0,0.14524759]
[1737998115407,0.3608,99609.0,99600.0,0.14524759]
[1737998115797,0.47777279,99617.0,99578.0,0.3608]
[1737998115798,0.3608,99608.0,99586.0,0.3608]
[1737998116502,0.3608,99608.0,99585.0,0.54567399]
[1737998116503,0.3608,99594.0,99585.0,0.54567399]
[1737998117001,0.3608,99600.0,99585.0,0.49556224]
[1737998117219,0.3608,99600.0,99590.0,0.14524759]
[1737998118101,0.3608,99600.0,99586.0,1.50056]
[1737998118299,0.3608,99600.0,99590.0,0.14524759]
[1737998118499,0.00015055,99607.0,99590.0,0.14524759]
[1737998118696,0.3608,99599.0,99590.0,0.14524759]
[1737998118897,0.3608,99599.0,99586.0,1.86132]
[1737998119208,0.3608,99599.0,99586.0,1.8608]
[1737998120101,0.3608,99599.0,99586.0,1.81068825]
[1737998121013,0.3608,99589.0,99585.0,0.49556224]
[1737998122017,0.36152,99599.0,99585.0,0.49556224]
[1737998122199,0.3608,99599.0,99589.0,0.14524759]
[1737998122702,0.3608,99599.0,99585.0,0.49556224]
[1737998122899,0.3608,99599.0,99585.0,0.44545049]
[1737998123213,0.3608,99589.0,99585.0,0.44545049]
[1737998123412,0.3608,99586.0,99585.0,0.3946965]
[1737998123717,0.3608,99586.0,99579.0,0.003]
[1737998123894,0.3608,99586.0,99579.0,0.05309118]
[1737998125007,0.3608,99586.0,99579.0,0.003]
[1737998125508,0.2942,99585.0,99579.0,0.003]
[1737998125701,0.2942,99585.0,99573.0,0.05104085]
[1737998126009,0.3608,99574.0,99553.0,0.19264074]
[1737998126213,0.3608,99574.0,99524.0,0.475418]
[1737998126214,0.3608,99556.0,99547.0,0.49564]
[1737998126405,0.3608,99556.0,99547.0,0.49508]
[1737998126604,0.3608,99556.0,99549.0,0.05246152]
[1737998126806,0.3608,99556.0,99549.0,0.003]
[1737998129113,0.3608,99556.0,99547.0,0.002596]
[1737998129307,0.3608,99556.0,99542.0,0.3608]
[1737998129507,0.3608,99556.0,99542.0,0.41097508]
[1737998130116,0.3608,99556.0,99542.0,0.61196408]
[1737998130318,0.00015062,99562.0,99542.0,0.61196408]
[1737998130516,0.00015062,99562.0,99550.0,0.14524759]
[1737998131108,0.3608,99554.0,99542.0,0.41097508]
[1737998132007,0.3608,99554.0,99542.0,0.36086333]
[1737998133317,0.3608,99545.0,99542.0,0.05017508]
[1737998133518,0.3608,99545.0,99541.0,1.50052]
[1737998133712,0.00015062,99562.0,99541.0,1.5]
[1737998134016,0.00015062,99562.0,99541.0,1.55017005]
[1737998134215,0.3608,99552.0,99541.0,1.55017005]
[1737998134417,0.00015062,99562.0,99541.0,1.55017005]
[1737998134608,0.3608,99555.0,99541.0,1.55017005]
[1737998135222,0.3608,99555.0,99541.0,1.5000583]
[1737998136812,0.3608,99555.0,99545.0,0.3608]
[1737998137015,0.00015062,99562.0,99554.0,0.3608]
[1737998137213,0.14558197,99585.0,99560.0,0.200953]
[1737998137422,0.14610198,99585.0,99570.0,0.14524759]
[1737998137715,0.36132001,99586.0,99579.0,0.3608]
[1737998137716,0.11617279,99581.0,99579.0,0.3608]
[1737998137915,0.11617279,99581.0,99571.0,1.50052]
[1737998138119,0.11617279,99581.0,99571.0,1.81068825]
[1737998138824,0.7216,99572.0,99550.0,0.14524759]
[1737998139126,0.201033,99521.0,99519.0,0.003]
[1737998139317,0.3608,99525.0,99514.0,0.04991658]
[1737998139514,0.3608,99516.0,99500.0,0.1]
[1737998139813,0.14524759,99514.0,99500.0,0.1]
[1737998140015,0.14524759,99514.0,99511.0,0.3608]
[1737998140207,0.561802,99537.0,99513.0,0.3608]
[1737998140208,0.00015072,99520.0,99513.0,0.3608]
[1737998141025,0.00015072,99520.0,99512.0,0.3608]
[1737998141221,0.00015072,99520.0,99512.0,0.31068825]
[1737998141819,0.1161328,99526.0,99512.0,0.31068825]
[1737998142121,0.1161328,99526.0,99513.0,0.1535]
[1737998142122,0.3608,99518.0,99513.0,0.1535]
[1737998142317,0.201033,99521.0,99504.0,0.05328856]
[1737998142520,0.3171558,99526.0,99504.0,0.05328856]
[1737998142724,0.3171558,99526.0,99512.0,0.3608]
[1737998143028,0.1161328,99526.0,99512.0,0.3608]
[1737998143215,0.1161328,99526.0,99509.0,0.00015072]
[1737998143415,0.1161328,99526.0,99512.0,0.3608]
[1737998143816,0.1161328,99526.0,99521.0,0.3608]
[1737998144327,0.1161328,99526.0,99521.0,0.31068825]
[1737998144915,0.00015072,99529.0,99521.0,0.31068825]
[1737998145420,0.3608,99522.0,99509.0,0.00015072]
[1737998145816,0.3608,99510.0,99509.0,0.04998662]
[1737998146130,0.3608,99510.0,99509.0,0.00015072]
[1737998146617,0.3056,99521.0,99509.0,0.00015072]
[1737998146618,0.1501,99521.0,99509.0,0.00015072]
[1737998147217,0.36132001,99531.0,99503.0,0.36329775]
[1737998147427,0.36132001,99531.0,99503.0,0.3608]
[1737998148022,0.36132001,99531.0,99510.0,0.14524759]
[1737998148323,0.14558197,99557.0,99527.0,0.7216]
[1737998148541,0.10177731,99557.0,99547.0,0.3608]
[1737998148832,0.02461337,99557.0,99555.0,0.3608]
[1737998149031,0.200894,99590.0,99555.0,0.3608]
[1737998149219,0.36431001,99593.0,99565.0,0.3608]
[1737998149633,0.00015072,99575.0,99565.0,0.3608]
[1737998150425,0.00015072,99575.0,99565.0,0.31068825]
[1737998151428,0.00015072,99575.0,99557.0,1.50064]
[1737998151429,1.19590313,99566.0,99557.0,0.00064]
[1737998151628,1.19590313,99566.0,99494.0,0.49544]
[1737998151629,0.3608,99558.0,99532.0,0.3608]
[1737998151838,0.3608,99547.0,99532.0,0.3608]
[1737998152226,0.3608,99547.0,99533.0,0.1492]
[1737998152827,0.00015072,99550.0,99533.0,0.1492]
[1737998153029,0.00015072,99550.0,99540.0,0.3608]
[1737998153230,0.00015072,99550.0,99548.0,0.3608]
[1737998153434,1e-08,99550.0,99548.0,0.31068825]
[1737998154126,1e-08,99550.0,99542.0,0.3608]
[1737998155739,1e-08,99550.0,99538.0,0.41149826]
[1737998156331,1e-08,99550.0,99548.0,0.31068825]
[1737998158526,0.17430313,99573.0,99548.0,0.66092736]
[1737998158827,0.13420857,99573.0,99565.0,0.3608]
[1737998159136,0.13420857,99573.0,99566.0,0.151]
[1737998159440,0.13420857,99573.0,99571.0,0.200932]
[1737998159635,0.10392596,99579.0,99569.0,0.3608]
[1737998159825,0.10407668,99579.0,99577.0,0.3608]
[1737998160641,0.36379,99578.0,99569.0,0.05106839]
[1737998160837,0.36379,99578.0,99557.0,0.49682653]
[1737998161039,0.3608,99570.0,99557.0,0.54783963]
[1737998161242,0.2939,99577.0,99557.0,0.49682653]
[1737998161243,0.3608,99566.0,99557.0,0.49682653]
[1737998161439,0.2939,99577.0,99557.0,0.49682653]
[1737998161640,0.7216,99566.0,99557.0,0.00150653]
[1737998161839,0.7216,99566.0,99528.0,0.5146]
[1737998161840,0.7216,99566.0,99528.0,0.3608]
[1737998162148,0.050231,99574.0,99520.0,0.49528]
[1737998162149,0.3608,99534.0,99520.0,0.49528]
[1737998162536,0.3086,99533.0,99520.0,0.44667526]
[1737998162844,0.3608,99526.0,99520.0,0.44667526]
[1737998163247,0.00060001,99534.0,99525.0,0.201024]
[1737998163548,0.3608,99557.0,99529.0,0.3608]